bitfinex-derivatives/quotes_ETHF0:USTF0_20250730
["timestamp","ask_amount","ask_price","bid_price","bid_amount"]
[1753868070226,0.5306,3786.9,3785.9,1.7387]
[1753868070422,0.5306,3786.9,3786.0,0.4982]
[1753868070722,0.52823,3786.2,3785.9,0.6967]
[1753868070928,0.5306,3786.5,3786.0,1.07205]
[1753868071121,1.56071,3786.4,3786.1,1.1949]
[1753868071321,1.56071,3786.4,3786.2,1.7387]
[1753868071322,0.5306,3786.3,3786.2,1.7387]
[1753868071725,0.52818,3786.6,3786.2,1.7387]
[1753868071923,1.0325,3786.6,3786.3,1.7387]
[1753868072123,0.1442104,3786.9,3786.3,0.4982]
[1753868072425,1.05876,3786.7,3786.6,1.2405]
[1753868073324,0.52813,3786.9,3786.6,1.7387]
[1753868073527,0.5306,3786.8,3786.7,1.7387]
[1753868074524,0.5306,3786.8,3786.7,1.2405]
[1753868074525,1.0325,3786.8,3786.7,1.2405]
[1753868074828,1.4134,3786.8,3786.7,0.5438]
[1753868075024,1.4134,3786.8,3786.2,0.4982]
[1753868075025,0.3809,3786.6,3786.4,0.5438]
[1753868075231,1.56068,3786.5,3786.4,0.5438]
[1753868077226,1.56068,3786.5,3786.4,1.2405]
[1753868077428,1.05878,3786.5,3786.4,1.7387]
[1753868077827,0.67422582,3787.1,3786.6,1.1949]
[1753868078126,1.0325,3786.8,3786.7,0.5438]
[1753868078428,1.4134,3786.8,3786.7,0.5438]
[1753868079629,1.0325,3786.8,3786.7,0.5438]
[1753868079834,1.0325,3786.8,3786.7,1.2405]
[1753868080328,0.5306,3787.4,3787.3,1.042]
[1753868080528,0.5019,3787.7,3787.4,0.52806]
[1753868080829,0.5306,3787.6,3787.5,1.7387]
[1753868081126,1.0325,3787.6,3787.5,1.2405]
[1753868081327,1.0325,3787.6,3787.5,0.5438]
[1753868081532,0.5306,3787.6,3787.5,1.7387]
[1753868081933,1.0325,3787.6,3787.5,1.2405]
[1753868083329,0.5019,3787.5,3787.2,0.6967]
[1753868083534,1.32004,3787.8,3787.2,0.6967]
[1753868083535,1.56058,3787.3,3787.2,0.5438]
[1753868083935,0.5306,3787.3,3787.2,1.7387]
[1753868084139,1.05865,3787.5,3787.1,0.52809]
[1753868084435,1.05865,3787.5,3787.4,1.7387]
[1753868084938,0.5306,3787.8,3787.2,0.52808]
[1753868085233,0.5306,3787.7,3787.4,1.042]
[1753868085425,0.5306,3787.7,3787.3,1.7387]
[1753868085426,0.52804,3787.6,3787.3,1.7387]
[1753868085625,0.52804,3787.6,3787.4,0.4982]
[1753868085828,1.05864,3787.6,3787.5,1.7387]
[1753868086031,0.5306,3787.9,3786.9,1.32031]
[1753868086333,1.05854,3788.3,3787.9,0.52798]
[1753868086526,0.5306,3788.6,3788.0,1.042]
[1753868086837,0.5279,3788.5,3788.2,0.5438]
[1753868087134,1.0585,3788.5,3788.4,1.7387]
[1753868087334,0.5306,3788.5,3788.4,1.7387]
[1753868087535,0.5279,3788.6,3787.8,1.7387]
[1753868087725,31.685,3788.7,3788.0,1.7387]
[1753868087726,0.52794,3788.3,3788.0,1.7387]
[1753868087929,0.52795,3788.2,3788.0,1.1949]
[1753868088229,1.05855,3788.2,3788.1,1.7387]
[1753868088632,0.5306,3788.2,3788.1,1.7387]
[1753868088830,0.52794,3788.3,3788.1,1.7387]
[1753868089138,0.52795,3788.2,3787.8,1.7387]
[1753868089441,1.31979,3788.5,3787.2,5.80763229]
[1753868089630,1.0325,3788.0,3787.3,1.7387]
[1753868089832,1.56055,3787.5,3787.4,1.7387]
[1753868090032,1.56055,3787.5,3787.4,1.2405]
[1753868090238,1.56055,3787.5,3787.4,0.5438]
[1753868091435,1.56055,3787.5,3787.4,1.2584]
[1753868091840,0.5281,3787.1,3787.0,0.4982]
[1753868092145,1.5295,3787.1,3787.0,1.737]
[1753868092335,0.52809,3787.2,3786.7,0.52815]
[1753868092536,0.52805,3787.5,3786.6,1.2388]
[1753868092740,0.52805,3787.5,3786.7,1.7611]
[1753868092942,0.5248,3788.1,3786.7,1.2369]
[1753868093148,0.5248,3787.8,3786.8,0.7146]
[1753868093340,0.5281,3787.2,3787.1,0.5242]
[1753868093541,1.5295,3787.2,3787.1,1.2388]
[1753868093746,1.0014,3787.9,3787.2,1.2369]
[1753868093949,1.0014,3787.9,3786.4,1.32048]
[1753868093950,0.52807,3787.4,3786.9,0.52812]
[1753868094148,1.0014,3787.5,3786.8,1.0465]
[1753868094336,1.0014,3787.5,3786.9,0.7146]
[1753868094541,0.5248,3787.6,3787.2,0.7146]
[1753868094743,0.52804,3787.5,3787.4,1.2369]
[1753868095045,1.05284,3787.5,3787.4,0.5223]
[1753868095239,0.5282,3786.5,3785.5,1.32079]
[1753868095444,5.0,3787.5,3785.3,1.32086]
[1753868095445,0.52822,3786.3,3786.2,1.2369]
[1753868095738,1.0014,3786.3,3786.2,1.2369]
[1753868095939,0.5248,3786.3,3786.2,1.2369]
[1753868096740,1.053,3786.5,3786.3,0.5223]
[1753868096944,1.05299,3786.5,3786.4,1.2369]
[1753868097649,1.05299,3786.5,3786.4,1.7611]
[1753868098041,0.52824,3786.1,3786.0,1.0465]
[1753868098242,1.05307,3786.0,3785.8,0.71776469]
[1753868098544,0.52827,3786.0,3785.9,0.5223]
[1753868098846,0.52827,3786.0,3785.9,1.7611]
[1753868099448,0.52825,3786.1,3785.9,1.7611]
[1753868099647,0.52825,3786.1,3786.0,1.7611]
[1753868100146,40.8,3786.6,3785.9,1.2369]
[1753868100347,1.32027,3787.1,3786.7,0.7146]
[1753868100642,0.5248,3787.5,3785.9,1.32066]
[1753868100849,0.52804,3787.6,3787.2,0.52808]
[1753868101050,0.5248,3788.0,3786.8,1.32036]
[1753868101253,40.8,3788.3,3787.7,0.5223]
[1753868101452,0.52795,3788.3,3788.0,1.0465]
[1753868101642,19.5678,3788.6,3788.2,1.7611]
[1753868101845,19.043,3788.6,3788.2,1.7611]
[1753868102046,19.043,3788.6,3788.1,0.52795]
[1753868102448,19.043,3788.6,3788.5,1.7611]
[1753868102751,19.5678,3788.6,3788.5,1.7611]
[1753868103248,60.3678,3788.6,3788.5,1.7611]
[1753868104546,0.5248,3789.0,3788.5,1.2369]
[1753868104750,0.52786,3788.9,3788.6,0.5242]
[1753868104948,41.85265,3789.0,3788.8,1.7611]
[1753868105147,41.3248,3789.0,3788.9,1.7611]
[1753868105346,41.3248,3789.0,3787.5,1.32012]
[1753868105347,0.52801,3787.8,3787.6,4.64211454]
[1753868105549,1.32016,3787.4,3786.7,0.5242]
[1753868105749,1.3203,3787.0,3786.2,0.5242]
[1753868105950,0.52822,3786.3,3784.9,1.321]
[1753868106251,0.52822,3786.3,3784.6,1.3211]
[1753868106252,0.52822,3786.3,3786.2,0.5242]
[1753868106642,5.81063089,3786.3,3786.2,0.5242]
[1753868107048,5.28241089,3786.3,3786.2,1.7611]
[1753868109358,19.041,3786.8,3786.3,1.2388]
[1753868109554,19.041,3786.9,3786.1,1.7611]
[1753868109750,5.28227137,3786.6,3786.3,1.7611]
[1753868109951,46.08227137,3786.8,3786.3,0.5242]
[1753868110353,46.08227137,3786.8,3786.5,0.5242]
[1753868110555,46.08227137,3786.8,3786.7,1.7611]
[1753868110763,5.28227137,3786.8,3786.7,1.7611]
[1753868111756,5.28227137,3786.8,3786.7,2.28926]
[1753868112156,0.52805,3787.5,3787.4,1.0465]
[1753868112356,0.52805,3787.5,3787.4,1.7611]
[1753868112553,5.2815739,3787.7,3787.5,1.7611]
[1753868112862,0.52805,3787.5,3787.1,0.52809]
[1753868113360,0.52806,3787.4,3787.0,0.52811]
[1753868113559,0.52806,3787.4,3787.1,0.7146]
[1753868113760,5.2815739,3787.7,3786.8,0.009]
[1753868113963,0.52801,3787.8,3787.6,1.7611]
[1753868114262,5.2808069,3787.9,3787.8,0.5223]
[1753868114659,0.52806,3787.5,3787.4,0.5223]
[1753868114859,0.52806,3787.5,3787.4,1.7611]
[1753868115060,5.80830922,3787.5,3787.4,1.2388]
[1753868115556,5.80830922,3787.5,3787.4,0.5242]
[1753868115762,5.28024922,3787.5,3787.4,1.2388]
[1753868116063,5.28024922,3787.5,3787.4,1.7611]
[1753868117862,59.839,3788.0,3787.7,0.52802]
[1753868118066,60.36698,3788.0,3787.9,1.7611]
[1753868118562,65.64702012,3788.0,3787.9,1.7611]
[1753868119163,65.64702012,3788.0,3787.9,0.5242]
[1753868119364,65.69612012,3788.0,3787.9,0.5242]
[1753868120958,0.0491,3787.9,3787.6,0.5242]
[1753868121153,0.0491,3787.8,3787.7,0.5242]
[1753868121359,0.0211,3787.8,3787.7,1.7611]
[1753868121562,5.30127952,3787.8,3787.7,1.7611]
[1753868121758,0.0198,3788.6,3787.7,1.7611]
[1753868121962,19.0568,3788.6,3788.4,0.52791]
[1753868122161,24.33697952,3788.6,3788.5,1.7416]
[1753868122362,5.29997952,3788.6,3788.5,1.7416]
[1753868122567,0.0198,3788.6,3788.5,1.7416]
[1753868122865,46.09893422,3788.6,3788.5,1.7416]
[1753868125872,46.07913422,3788.6,3788.5,1.7416]
[1753868126466,5.27913422,3788.6,3788.5,1.7416]
[1753868126667,0.52787,3788.9,3787.8,1.32002]
[1753868126868,0.5477,3788.6,3788.4,0.5369]
[1753868127174,0.0198,3788.4,3788.3,1.7416]
[1753868127468,5.27906454,3788.5,3788.4,1.7416]
[1753868128362,19.56085,3789.0,3788.7,0.52787]
[1753868128566,19.56083,3789.1,3788.8,0.52786]
[1753868128767,5.27920389,3788.8,3788.6,0.52788]
[1753868129071,0.52787,3788.8,3788.5,0.5279]
[1753868129270,5.27920389,3788.8,3788.6,2.26948]
[1753868129470,5.27920389,3788.8,3788.7,1.2047]
[1753868129671,0.52786,3788.9,3788.6,0.52789]
[1753868129967,0.52786,3788.9,3788.8,1.7416]
[1753868130270,0.52786,3788.9,3788.8,1.2235]
[1753868130271,0.57396,3788.9,3788.8,1.2235]
[1753868130672,5.85260655,3788.9,3788.8,1.2235]
[1753868132375,5.85260655,3788.9,3788.8,1.7416]
[1753868133774,5.32474655,3788.9,3788.8,1.7416]
[1753868134176,5.32474655,3788.9,3788.8,2.9109]
[1753868134376,5.43004655,3788.9,3788.8,2.9109]
[1753868134577,5.43004655,3788.9,3788.8,2.3928]
[1753868134778,5.43004655,3788.9,3788.8,0.5369]
[1753868134976,5.44984655,3788.9,3788.8,0.5369]
[1753868135374,0.52787,3788.8,3788.5,0.5369]
[1753868135571,0.0198,3788.1,3788.0,0.5369]
[1753868135779,1.03531,3787.8,3787.4,0.52805]
[1753868135976,0.0461,3787.4,3787.3,0.6866]
[1753868136579,0.52812,3787.0,3786.8,0.009]
[1753868136777,19.5343,3786.9,3786.8,0.009]
[1753868137080,24.81503719,3786.9,3786.8,0.009]
[1753868137384,65.61503719,3786.9,3786.8,0.009]
[1753868137678,65.61403719,3786.9,3786.8,0.009]
[1753868137880,65.61603719,3786.9,3786.8,0.009]
[1753868138575,65.61603719,3786.9,3786.8,0.5459]
[1753868138776,65.61603719,3786.9,3786.8,1.2325]
[1753868139477,46.58803719,3786.9,3786.8,1.2325]
[1753868139678,46.08073719,3786.9,3786.8,1.7506]
[1753868140582,46.08073719,3786.9,3786.8,2.27874]
[1753868140782,46.08073719,3786.9,3786.8,1.7506]
[1753868141984,66.14516719,3786.9,3786.8,0.009]
[1753868142185,65.15583719,3786.9,3786.8,0.009]
[1753868142382,65.15583719,3786.9,3786.8,1.2325]
[1753868142680,65.12953719,3786.9,3786.8,1.7506]
[1753868142882,65.61703719,3786.9,3786.8,0.009]
[1753868143582,65.15583719,3786.9,3786.8,1.2325]
[1753868143980,65.12953719,3786.9,3786.8,1.7506]
[1753868144279,65.10973719,3786.9,3786.8,2.27874]
[1753868144781,24.32953719,3786.9,3786.8,1.7506]
[1753868145178,24.30973719,3786.9,3786.8,1.7506]
[1753868147085,5.28073719,3786.9,3786.8,1.7506]
[1753868149180,5.28073719,3786.9,3786.8,2.9199]
[1753868152892,5.62913719,3786.9,3786.8,2.9199]
[1753868153390,5.63443719,3786.9,3786.8,2.9199]
[1753868154789,5.62913719,3786.9,3786.8,2.9199]
[1753868154991,5.63443719,3786.9,3786.8,2.9199]
[1753868155290,25.13183719,3786.9,3786.8,0.0037]
[1753868155488,0.0112,3786.0,3785.9,1.7015]
[1753868155686,0.52815,3786.8,3786.3,1.07411]
[1753868155887,19.8318,3786.7,3786.6,1.5869]
[1753868156086,0.3621,3786.3,3786.2,2.3987]
[1753868156991,0.8088,3786.3,3786.2,2.3987]
[1753868157387,0.3621,3786.2,3786.1,1.2431]
[1753868157692,19.3659,3786.5,3786.4,1.1556]
[1753868157901,19.3659,3786.5,3786.4,2.891]
[1753868158097,0.52823,3786.3,3786.0,1.02055]
[1753868158392,0.3439,3786.2,3786.1,1.6479]
[1753868158689,0.3439,3786.2,3786.1,2.1938]
[1753868158995,24.30427137,3786.5,3786.4,1.1556]
[1753868159189,24.64817137,3786.5,3786.4,2.891]
[1753868159488,0.53522,3786.3,3786.0,0.5459]
[1753868159694,0.3621,3786.1,3786.0,2.891]
[1753868160194,19.4687,3786.5,3786.0,1.7354]
[1753868160393,19.3659,3786.5,3786.4,2.891]
[1753868160794,24.66665041,3786.5,3786.4,2.891]
[1753868160992,0.89034,3786.2,3786.1,2.3987]
[1753868161297,0.89037,3785.9,3785.8,2.14456469]
[1753868161498,1.33707,3785.9,3785.8,0.19546469]
[1753868161790,6.61948089,3785.9,3785.8,0.74136469]
[1753868161988,6.61948089,3785.9,3785.8,0.19546469]
[1753868161989,25.63948089,3785.9,3785.8,0.19546469]
[1753868162196,66.43948089,3785.9,3785.8,0.19546469]
[1753868163098,71.43948089,3785.9,3785.8,0.19546469]
[1753868163394,0.3439,3785.6,3785.5,1.6479]
[1753868163588,46.61069089,3785.9,3785.5,2.3451]
[1753868163791,5.28282948,3785.6,3785.5,2.891]
[1753868163986,5.28282948,3785.7,3785.6,1.68391]
[1753868164190,5.28282948,3785.9,3785.8,0.52828]
[1753868164393,60.1629,3786.1,3786.0,1.1556]
[1753868164592,60.1811,3786.1,3786.0,2.3987]
[1753868164792,65.46392948,3786.1,3786.0,2.3987]
[1753868165595,5.28282948,3786.1,3786.0,2.891]
[1753868165894,34.867,3786.7,3786.6,2.3987]
[1753868166097,0.3439,3786.8,3786.7,2.891]
[1753868166399,0.53516,3786.7,3786.2,1.2431]
[1753868166597,0.3621,3786.3,3786.2,1.0594]
[1753868167099,0.3621,3786.3,3786.2,1.6053]
[1753868167704,0.3621,3786.3,3786.2,2.3987]
[1753868167898,0.3621,3786.3,3786.2,2.891]
[1753868168198,0.3551,3786.3,3786.2,2.891]
[1753868168804,24.2995739,3786.4,3786.3,1.68381]
[1753868169001,24.2995739,3786.4,3786.3,3.41921]
[1753868169898,5.2815739,3786.4,3786.3,3.41921]
[1753868170701,2.40236,3787.4,3787.3,1.6479]
[1753868170898,0.52823,3786.3,3785.9,0.52826]
[1753868171097,0.3463,3786.0,3785.3,0.52835]
[1753868171303,0.3463,3786.0,3785.2,1.32092]
[1753868171304,2.92856,3786.0,3785.9,1.6053]
[1753868171595,2.92856,3786.0,3785.9,0.9081]
[1753868172196,2.92856,3786.0,3785.9,0.5459]
[1753868172400,2.9286,3785.7,3785.6,1.6053]
[1753868172703,2.92859,3785.8,3785.7,2.891]
[1753868173197,2.92859,3785.8,3785.7,0.9081]
[1753868173401,43.72859,3785.8,3785.7,0.9081]
[1753868173795,42.4991,3785.8,3785.7,2.891]
[1753868174200,41.1463,3785.8,3785.7,2.891]
[1753868174503,19.8853,3786.3,3786.2,2.891]
[1753868175005,61.91472,3786.3,3786.2,2.891]
[1753868175397,61.91472,3786.3,3786.2,2.3987]
[1753868175598,61.91472,3786.3,3786.2,1.7015]
[1753868175898,61.91472,3786.3,3786.2,2.891]
[1753868176905,61.91472,3786.3,3786.2,1.3577]
[1753868177097,0.5283,3785.7,3785.3,0.52834]
[1753868177293,1.6991,3785.7,3785.6,2.891]
[1753868178099,0.7012,3786.0,3785.6,2.0792]
[1753868178304,19.3573,3786.0,3785.9,2.891]
[1753868178998,19.3573,3786.0,3785.9,1.7015]
[1753868179202,21.4113,3786.0,3785.9,2.3987]
[1753868180104,21.4113,3786.0,3785.9,2.891]
[1753868180805,2.9286,3785.7,3785.6,1.2431]
[1753868181005,21.9376,3785.7,3785.6,0.5459]
[1753868182204,21.9376,3785.7,3785.6,0.8995]
[1753868182603,21.9376,3785.7,3785.6,3.0428]
[1753868182800,19.8382,3785.7,3785.6,3.0428]
[1753868182999,0.52829,3785.8,3785.6,1.7654]
[1753868183204,19.53629,3785.8,3785.7,3.0384]
[1753868184106,40.8,3786.3,3786.2,1.2195]
[1753868184306,59.808,3786.3,3786.2,3.0384]
[1753868184503,60.3624,3786.3,3786.2,3.0384]
[1753868185609,59.807,3786.3,3786.2,0.5415]
[1753868185812,1.1505,3785.8,3785.7,3.0384]
[1753868186005,0.3459,3786.0,3785.9,3.0384]
[1753868186206,20.78045,3786.1,3786.0,3.0384]
[1753868186405,21.96795,3786.1,3786.0,0.8951]
[1753868186605,1.975,3785.9,3785.8,2.291]
[1753868186807,2.4337,3785.9,3785.8,3.0384]
[1753868187813,21.4387,3785.9,3785.8,1.397]
[1753868188012,21.4387,3785.9,3785.8,0.8951]
[1753868188208,21.4387,3785.9,3785.8,3.0384]
[1753868188403,0.8046,3785.6,3785.5,1.2889]
[1753868188608,2.96201,3785.6,3785.5,2.5084]
[1753868189103,2.96201,3785.6,3785.5,1.2591]
[1753868189308,2.96201,3785.6,3785.5,0.8951]
[1753868190113,2.4337,3785.6,3785.5,3.0384]
[1753868190608,0.9003,3785.6,3785.5,3.56673]
[1753868190808,0.52825,3786.1,3785.7,2.27779]
[1753868191113,0.52822,3786.3,3785.9,1.74776]
[1753868191310,19.001,3786.2,3786.1,1.2195]
[1753868191509,19.001,3786.2,3786.1,3.0384]
[1753868192110,19.3469,3786.2,3786.1,3.0384]
[1753868192309,0.3459,3786.2,3786.1,3.0384]
[1753868192511,19.001,3786.3,3786.1,1.2195]
[1753868192712,19.001,3786.3,3786.2,3.0384]
[1753868193010,19.0,3786.3,3786.2,3.0384]
[1753868193411,20.1505,3786.3,3786.2,1.397]
[1753868193606,0.4587,3786.0,3785.9,0.5019]
[1753868193813,0.8046,3786.0,3785.9,2.4969]
[1753868194213,2.4337,3786.0,3785.9,0.8951]
[1753868195103,0.3459,3785.8,3785.7,0.5415]
[1753868195311,2.7228,3785.8,3785.7,0.5415]
[1753868195818,2.96204,3785.4,3785.3,2.5084]
[1753868196311,2.96204,3785.4,3785.3,3.0384]
[1753868197416,2.4337,3785.4,3785.3,3.0384]
[1753868198715,2.4337,3785.4,3785.3,2.5084]
[1753868198916,2.4337,3785.4,3785.3,3.0384]
[1753868199220,0.52841,3784.9,3784.8,1.761]
[1753868199409,0.52841,3784.9,3783.9,1.32137]
[1753868199410,0.3459,3784.2,3784.1,1.7495]
[1753868199715,2.96221,3784.2,3784.1,3.0384]
[1753868200311,2.96221,3784.2,3784.1,0.5415]
[1753868200312,1.77471,3784.2,3784.1,0.5415]
[1753868200516,3.25131,3784.2,3784.1,0.5415]
[1753868201315,2.40785,3783.9,3783.8,0.19556801]
[1753868201515,2.4337,3783.9,3783.8,2.70396801]
[1753868201715,2.4337,3783.9,3783.8,3.23396801]
[1753868201916,43.2337,3783.9,3783.8,3.23396801]
[1753868202722,40.8,3783.9,3783.8,3.23396801]
[1753868203020,18.994,3784.9,3784.8,1.8189]
[1753868203315,61.0772,3784.9,3784.8,0.5415]
[1753868203519,1.81162,3784.8,3784.3,1.2889]
[1753868203721,1.5723,3784.2,3783.8,0.73706801]
[1753868203918,1.2832,3784.0,3783.8,0.19556801]
[1753868204118,1.5723,3783.9,3783.8,0.19556801]
[1753868205219,42.3723,3783.9,3783.8,0.19556801]
[1753868206020,42.0832,3783.9,3783.8,0.73706801]
[1753868206216,42.0832,3783.9,3783.8,1.48446801]
[1753868206524,1.5723,3783.8,3783.3,0.5415]
[1753868206824,1.2832,3783.6,3783.5,0.5415]
[1753868207521,1.2832,3783.6,3783.5,1.8189]
[1753868207720,20.2782,3783.6,3783.5,1.8189]
[1753868207922,1.2832,3783.6,3783.5,1.8189]
[1753868208125,19.5484,3783.6,3783.5,1.8189]
[1753868208911,19.5484,3783.6,3783.3,0.52862]
[1753868208912,1.2832,3783.3,3783.2,0.01850261]
[1753868209116,21.4267,3783.3,3783.2,0.56000261]
[1753868209414,26.4267,3783.3,3783.2,1e-08]
[1753868209716,0.52873,3782.6,3782.5,1.2195]
[1753868209921,21.4267,3782.6,3782.5,2.5084]
[1753868211520,21.4267,3782.6,3782.5,3.045]
[1753868212326,21.4267,3782.6,3782.5,0.5415]
[1753868212725,21.4267,3782.6,3782.5,2.1408]
[1753868213030,21.4267,3782.6,3782.5,3.0386]
[1753868213526,21.4267,3782.6,3782.5,3.56735]
[1753868213727,21.4267,3782.6,3782.5,3.0386]
[1753868214120,20.6979,3782.6,3782.5,3.0386]
[1753868214520,21.41,3782.6,3782.5,3.0386]
[1753868214822,21.41,3782.6,3781.8,0.19567143]
[1753868214823,40.8,3782.8,3782.7,3.0544]
[1753868215127,20.8376,3783.1,3783.0,2.5178]
[1753868215428,62.189,3783.1,3783.0,3.0544]
[1753868215624,61.4769,3783.1,3783.0,0.5573]
[1753868215926,62.71466,3783.1,3783.0,0.5573]
[1753868216221,62.186,3783.1,3783.0,1.667]
[1753868216621,62.186,3783.1,3783.0,2.1566]
[1753868217126,62.186,3783.1,3783.0,0.9278]
[1753868217528,62.186,3783.1,3783.0,1.7786]
[1753868217721,62.186,3783.1,3783.0,2.5178]
[1753868218023,40.8,3783.1,3783.0,3.0544]
[1753868218227,59.792,3783.1,3783.0,3.0544]
[1753868218720,0.7953,3782.6,3782.5,2.4971]
[1753868218924,20.3387,3782.6,3782.5,2.4971]
[1753868219318,20.3387,3782.6,3782.5,3.0544]
[1753868219731,20.6739,3782.6,3782.5,3.0544]
[1753868219917,21.386,3782.6,3782.5,1.7786]
[1753868220321,21.386,3782.6,3782.5,2.5178]
[1753868220626,1.1305,3782.0,3781.9,2.30743]
[1753868220820,1.2635,3783.0,3782.4,1.2213]
[1753868221026,1.8426,3783.0,3782.9,3.0544]
[1753868221225,2.394,3783.0,3782.9,2.5178]
[1753868221425,21.384,3783.0,3782.9,2.5178]
[1753868221623,21.384,3783.0,3782.9,3.0544]
[1753868221926,2.92276,3782.4,3782.3,0.9278]
[1753868222132,1.65929,3782.2,3782.1,0.3705]
[1753868222423,21.16119,3782.2,3782.1,1.2213]
[1753868222832,21.91379,3782.2,3782.1,1.2213]
[1753868223022,21.385,3782.2,3782.1,1.2213]
[1753868223423,18.991,3782.2,3782.1,1.2213]
[1753868223618,0.7121,3782.6,3782.1,1.2213]
[1753868223826,59.789,3782.5,3782.1,1.2213]
[1753868224030,59.789,3782.5,3782.1,1.75009]
[1753868224221,59.789,3782.5,3782.4,1.2213]
[1753868224420,59.789,3782.5,3782.4,3.0544]
[1753868224832,40.8,3782.5,3782.4,3.0544]
[1753868225124,40.8,3782.5,3782.3,0.52876]
[1753868225125,59.789,3782.5,3782.3,0.52876]
[1753868225323,59.789,3782.5,3781.9,1.32207]
[1753868225324,0.52879,3782.2,3781.9,2.4971]
[1753868225625,2.0476,3782.0,3781.9,1.9605]
[1753868225817,0.7841,3782.0,3781.9,3.0544]
[1753868226020,0.4489,3782.0,3781.9,3.0544]
[1753868226222,2.394,3782.0,3781.9,3.0544]
[1753868226418,0.52881,3782.1,3782.0,1.8331]
[1753868226629,0.52881,3782.1,3782.0,3.0544]
[1753868226828,2.92281,3782.1,3782.0,3.0544]
[1753868227025,21.91081,3782.1,3782.0,3.0544]
[1753868227230,22.42171,3782.1,3782.0,3.0544]
[1753868227632,18.987,3782.1,3782.0,1.2213]
[1753868228333,19.51676,3782.4,3782.3,2.3152]
[1753868228525,19.51676,3782.4,3782.3,3.0544]
[1753868228726,0.52882,3782.0,3781.8,0.19567143]
[1753868228926,3.43372,3782.0,3781.9,2.3152]
[1753868229233,1.65932,3782.0,3781.8,0.19567143]
[1753868229421,1.1305,3781.2,3781.1,1.7786]
[1753868229625,2.394,3781.2,3781.1,3.0544]
[1753868229826,2.92293,3781.2,3781.1,3.0544]
[1753868230228,1.8426,3781.0,3780.9,1.2213]
[1753868230429,21.8909,3781.0,3780.9,0.3705]
[1753868230823,1.161,3780.7,3780.6,3.0544]
[1753868231030,1.7744,3782.1,3780.5,1.32255]
[1753868231227,2.394,3781.8,3781.7,2.4971]
[1753868231427,0.7841,3781.2,3781.1,1.2213]
[1753868231637,1.65944,3781.1,3781.0,1.2213]
[1753868231829,3.43384,3781.1,3781.0,1.2213]
[1753868232036,1.8426,3780.8,3780.7,2.3152]
[1753868232229,1.8426,3780.8,3780.7,3.0544]
[1753868232834,19.6981,3781.0,3780.2,0.01851729]
[1753868233026,0.5514,3780.9,3780.5,1.2213]
[1753868233228,2.394,3780.3,3780.2,0.01851729]
[1753868233432,2.394,3780.3,3780.2,0.38901729]
[1753868233433,62.6899,3780.3,3780.2,0.38901729]
[1753868233628,61.5594,3780.3,3780.2,0.01851729]
[1753868234032,61.5594,3780.3,3780.2,0.57581729]
[1753868234428,61.5594,3780.3,3780.2,1.85161729]
[1753868234429,42.0635,3780.3,3780.2,1.85161729]
[1753868234734,40.8,3780.3,3780.2,1.85161729]
[1753868234939,0.5109,3781.1,3780.4,2.36213]
[1753868234940,18.986,3780.5,3780.4,2.36213]
[1753868235129,0.52905,3780.3,3780.2,0.01851729]
[1753868235334,0.52911,3780.0,3779.8,0.19577496]
[1753868235634,21.6002069,3779.9,3779.8,0.19577496]
[1753868235935,0.5109,3779.7,3778.8,0.52926]
[1753868236135,0.52921,3779.2,3778.0,1.32343]
[1753868236341,19.55321,3779.2,3778.6,0.52929]
[1753868236639,19.024,3779.2,3778.6,0.52929]
[1753868236827,19.024,3779.2,3778.7,0.7392]
[1753868237032,19.55321,3779.2,3778.9,0.7392]
[1753868237233,19.019,3779.2,3778.6,0.52929]
[1753868237436,19.019,3779.2,3778.8,0.5366]
[1753868237637,19.019,3779.2,3778.6,0.52929]
[1753868237834,19.019,3779.2,3779.1,1.2758]
[1753868238037,1.2635,3779.1,3778.8,1.2758]
[1753868238341,19.019,3779.2,3777.8,0.19587861]
[1753868238342,19.02,3779.2,3778.3,0.5366]
[1753868238640,19.02,3779.2,3778.5,1.8331]
[1753868238837,19.02,3779.2,3779.1,1.8331]
[1753868239040,19.017,3779.3,3779.2,1.8331]
[1753868239333,40.8,3779.6,3779.5,1.8331]
[1753868239531,41.60027594,3779.6,3779.5,1.8331]
[1753868239941,0.80027594,3779.6,3779.5,1.8331]
[1753868240138,1.7744,3779.5,3779.4,0.5573]
[1753868240345,1.86257594,3779.5,3779.4,0.5573]
[1753868240537,42.66257594,3779.5,3779.4,0.5573]
[1753868240734,43.37467594,3779.5,3779.4,0.5573]
[1753868241041,43.37467594,3779.5,3779.4,1.8331]
[1753868241237,41.60027594,3779.5,3779.4,1.8331]
[1753868241629,41.60027594,3779.5,3779.4,3.0544]
[1753868241830,1.41292638,3779.8,3779.7,0.87724]
[1753868242040,1.41292638,3779.9,3779.7,0.52914]
[1753868242340,1.41292638,3780.3,3780.1,1.72528]
[1753868242533,19.015,3780.6,3780.3,1.72525]
[1753868242534,2.70552638,3780.4,3780.3,1.72525]
[1753868242936,1.41292638,3780.5,3780.4,1.1962]
[1753868243134,19.01,3780.6,3780.4,1.72523]
[1753868243342,19.01,3780.6,3779.5,2.644]
[1753868243638,1.2926,3780.2,3780.1,1.1962]
[1753868244343,0.52916,3779.6,3779.0,0.5107]
[1753868244642,1.2926,3779.4,3779.3,1.03988]
[1753868244839,0.5542,3779.9,3779.8,1.72532]
[1753868245135,20.42571475,3780.3,3780.2,0.52906]
[1753868245341,61.77991475,3780.3,3780.2,1.72526]